[Event "Late-Titled-Tuesday-Blitz-October-03-2023"]
[Site "Chess.com"]
[Date "2023.10.03"]
[Round "6"]
[White "dretch"]
[Black "FairChess_on_YouTube"]
[Result "0-1"]
[WhiteElo "2840"]
[BlackElo "3042"]
[TimeControl "180+1"]
[EndTime "15:04:58 PDT"]
[Termination "FairChess_on_YouTube won by resignation"]

1. d4 {[%clk 0:03:00.9]} 1... Nf6 {[%clk 0:02:58.1]} 2. c4 {[%clk 0:03:00.7]}
2... d6 {[%clk 0:02:58.5]} 3. Nf3 {[%clk 0:03:00.8]} 3... g6 {[%clk 0:02:58.2]}
4. Nc3 {[%clk 0:03:01.2]} 4... Bf5 {[%clk 0:02:57.8]} 5. d5 {[%clk 0:02:57]}
5... c5 {[%clk 0:02:54.4]} 6. g3 {[%clk 0:02:34.6]} 6... Bg7 {[%clk 0:02:52.8]}
7. Bg2 {[%clk 0:02:34.6]} 7... Ne4 {[%clk 0:02:52.9]} 8. Nxe4 {[%clk 0:02:28.7]}
8... Bxe4 {[%clk 0:02:53.8]} 9. O-O {[%clk 0:02:26.4]} 9... O-O {[%clk
0:02:53.9]} 10. Bh3 {[%clk 0:02:25.6]} 10... Bxf3 {[%clk 0:02:44]} 11. exf3
{[%clk 0:02:24.3]} 11... b5 {[%clk 0:02:39.9]} 12. cxb5 {[%clk 0:02:21.6]} 12...
a6 {[%clk 0:02:40.5]} 13. bxa6 {[%clk 0:02:05]} 13... Nxa6 {[%clk 0:02:41.4]}
14. Re1 {[%clk 0:02:03.8]} 14... Ra7 {[%clk 0:02:35.4]} 15. Bf1 {[%clk
0:01:50.6]} 15... Qb6 {[%clk 0:02:33.5]} 16. Rb1 {[%clk 0:01:39.3]} 16... Rb8
{[%clk 0:02:26.4]} 17. Bg5 {[%clk 0:01:32.1]} 17... Rbb7 {[%clk 0:02:10.3]} 18.
a3 {[%clk 0:01:15.8]} 18... h6 {[%clk 0:02:10.2]} 19. Be3 {[%clk 0:01:10.6]}
19... Nc7 {[%clk 0:02:09.2]} 20. Qd2 {[%clk 0:00:54.3]} 20... Qb3 {[%clk
0:01:59.6]} 21. Bxh6 {[%clk 0:00:42.4]} 21... Nxd5 {[%clk 0:01:53]} 22. Bxg7
{[%clk 0:00:19.8]} 22... Kxg7 {[%clk 0:01:53.9]} 23. h4 {[%clk 0:00:18.9]} 23...
Nf6 {[%clk 0:01:53.2]} 24. f4 {[%clk 0:00:14.2]} 24... d5 {[%clk 0:01:39]} 25.
Bg2 {[%clk 0:00:11.4]} 25... e6 {[%clk 0:01:38.5]} 26. Re3 {[%clk 0:00:09.2]}
26... Qa2 {[%clk 0:01:36]} 27. Qc2 {[%clk 0:00:09.8]} 27... c4 {[%clk
0:01:33.5]} 28. Bf3 {[%clk 0:00:10.3]} 28... Rb6 {[%clk 0:01:17.6]} 29. Bd1
{[%clk 0:00:09.2]} 29... Rab7 {[%clk 0:01:16.8]} 30. b4 {[%clk 0:00:07.9]} 30...
cxb3 {[%clk 0:01:14]} 31. Rexb3 {[%clk 0:00:07.8]} 31... Qxc2 {[%clk 0:01:04]}
32. Bxc2 {[%clk 0:00:08.7]} 32... Rxb3 {[%clk 0:01:03.8]} 33. Rxb3 {[%clk
0:00:09]} 33... Rc7 {[%clk 0:01:04.5]} 34. Bd3 {[%clk 0:00:09.6]} 34... Rc1+
{[%clk 0:01:02.7]} 35. Kg2 {[%clk 0:00:09.2]} 35... Ra1 {[%clk 0:01:03.4]} 36.
Bb5 {[%clk 0:00:08.6]} 36... Ne4 {[%clk 0:01:00.1]} 37. Bd3 {[%clk 0:00:07.3]}
37... Nc5 {[%clk 0:00:57.8]} 38. Rc3 {[%clk 0:00:07.4]} 38... Na4 {[%clk
0:00:58.4]} 39. Rb3 {[%clk 0:00:07.8]} 39... Ra2 {[%clk 0:00:59]} 40. Bb5 {[%clk
0:00:06.7]} 40... Nc5 {[%clk 0:00:58.8]} 41. Rf3 {[%clk 0:00:06.5]} 41... Ne4
{[%clk 0:00:59.3]} 42. a4 {[%clk 0:00:06.2]} 42... Kf6 {[%clk 0:00:52.1]} 43. g4
{[%clk 0:00:05.8]} 43... Kg7 {[%clk 0:00:45.5]} 44. g5 {[%clk 0:00:06]} 44...
Nc5 {[%clk 0:00:39]} 45. Kg3 {[%clk 0:00:04.7]} 45... Ne4+ {[%clk 0:00:37.7]}
46. Kg2 {[%clk 0:00:04.9]} 46... Nc5 {[%clk 0:00:38.3]} 47. Kg1 {[%clk
0:00:05.1]} 47... Nxa4 {[%clk 0:00:38.1]} 48. Bxa4 {[%clk 0:00:05.2]} 48... Rxa4
{[%clk 0:00:39]} 49. Kg2 {[%clk 0:00:05.9]} 49... Ra1 {[%clk 0:00:37.6]} 50. Rd3
{[%clk 0:00:05]} 50... Re1 {[%clk 0:00:37.4]} 51. Kf3 {[%clk 0:00:05]} 51... Rg1
{[%clk 0:00:37.1]} 52. Rd2 {[%clk 0:00:04.7]} 52... Rh1 {[%clk 0:00:37.4]} 53.
Kg3 {[%clk 0:00:04.9]} 53... Ra1 {[%clk 0:00:38]} 54. Kf3 {[%clk 0:00:05.2]}
54... Ra3+ {[%clk 0:00:38.5]} 55. Kg4 {[%clk 0:00:05.7]} 55... Ra4 {[%clk
0:00:36.7]} 56. Rd1 {[%clk 0:00:05.3]} 56... Kf8 {[%clk 0:00:36]} 57. Kg3 {[%clk
0:00:05.4]} 57... Ke7 {[%clk 0:00:36.2]} 58. Kf3 {[%clk 0:00:06]} 58... Kd6
{[%clk 0:00:34.7]} 59. Rb1 {[%clk 0:00:06.4]} 59... Ra7 {[%clk 0:00:34.1]} 60.
Rc1 {[%clk 0:00:06.5]} 60... Ra3+ {[%clk 0:00:31.9]} 61. Kg4 {[%clk 0:00:06.1]}
61... d4 {[%clk 0:00:31.3]} 62. Rc8 {[%clk 0:00:06.3]} 62... Kd5 {[%clk
0:00:23.2]} 63. Rd8+ {[%clk 0:00:05.3]} 63... Ke4 {[%clk 0:00:23.8]} 64. Rd7
{[%clk 0:00:05.8]} 64... d3 {[%clk 0:00:24.2]} 65. Kg3 {[%clk 0:00:05.8]} 65...
d2+ {[%clk 0:00:23.8]} 66. Kg2 {[%clk 0:00:05.6]} 66... Rd3 {[%clk 0:00:24.4]}
67. f3+ {[%clk 0:00:05.6]} 67... Ke3 {[%clk 0:00:24.2]} 0-1

[Event "Late-Titled-Tuesday-Blitz-October-03-2023"]
[Site "Chess.com"]
[Date "2023.10.03"]
[Round "6"]
[White "Angry_Twin"]
[Black "Firouzja2003"]
[Result "0-1"]
[WhiteElo "2935"]
[BlackElo "3123"]
[TimeControl "180+1"]
[EndTime "15:05:03 PDT"]
[Termination "Firouzja2003 won by resignation"]

1. e4 {[%clk 0:02:37.4]} 1... c5 {[%clk 0:02:56.8]} 2. Nf3 {[%clk 0:02:37.2]}
2... d6 {[%clk 0:02:56.4]} 3. Bb5+ {[%clk 0:02:37.8]} 3... Nd7 {[%clk
0:02:56.1]} 4. O-O {[%clk 0:02:37.7]} 4... a6 {[%clk 0:02:56.4]} 5. Bd3 {[%clk
0:02:37.8]} 5... Ngf6 {[%clk 0:02:55.5]} 6. Re1 {[%clk 0:02:37.3]} 6... e6
{[%clk 0:02:55]} 7. c3 {[%clk 0:02:36.8]} 7... b5 {[%clk 0:02:54.9]} 8. a4
{[%clk 0:02:35.1]} 8... Bb7 {[%clk 0:02:48.4]} 9. Bc2 {[%clk 0:02:30.1]} 9...
Be7 {[%clk 0:02:46.3]} 10. d4 {[%clk 0:02:29.6]} 10... O-O {[%clk 0:02:44.8]}
11. Nbd2 {[%clk 0:02:30.3]} 11... Qc7 {[%clk 0:02:38.1]} 12. Nf1 {[%clk
0:02:27.8]} 12... Rfc8 {[%clk 0:02:34.9]} 13. Bd3 {[%clk 0:02:26.1]} 13... Bc6
{[%clk 0:02:29.6]} 14. axb5 {[%clk 0:02:20.1]} 14... axb5 {[%clk 0:02:29.1]} 15.
Rxa8 {[%clk 0:02:18.4]} 15... Rxa8 {[%clk 0:02:29.7]} 16. Ng3 {[%clk 0:02:18.8]}
16... Qb7 {[%clk 0:02:15.6]} 17. b3 {[%clk 0:02:02.2]} 17... cxd4 {[%clk
0:02:10.6]} 18. cxd4 {[%clk 0:02:02]} 18... b4 {[%clk 0:02:10.5]} 19. Qc2 {[%clk
0:01:37.7]} 19... Bb5 {[%clk 0:02:04.4]} 20. Bd2 {[%clk 0:01:29]} 20... Bxd3
{[%clk 0:01:54.3]} 21. Qxd3 {[%clk 0:01:29.9]} 21... d5 {[%clk 0:01:54.2]} 22.
e5 {[%clk 0:01:29.1]} 22... Ne8 {[%clk 0:01:52]} 23. h4 {[%clk 0:01:29.5]} 23...
Nc7 {[%clk 0:01:40.8]} 24. h5 {[%clk 0:01:25.9]} 24... h6 {[%clk 0:01:40.1]} 25.
Nh2 {[%clk 0:01:16.5]} 25... Qa6 {[%clk 0:01:36.9]} 26. Qc2 {[%clk 0:00:57.1]}
26... Nb5 {[%clk 0:01:34.6]} 27. Nf3 {[%clk 0:00:57.6]} 27... Na3 {[%clk
0:01:19.8]} 28. Qb2 {[%clk 0:00:52.6]} 28... Qd3 {[%clk 0:01:17.1]} 29. Rc1
{[%clk 0:00:42.5]} 29... Nb5 {[%clk 0:01:15.9]} 30. Qb1 {[%clk 0:00:29.3]} 30...
Qxb1 {[%clk 0:01:12.3]} 31. Rxb1 {[%clk 0:00:30.2]} 31... Ra2 {[%clk 0:01:06.7]}
32. Nf1 {[%clk 0:00:30.2]} 32... Nc3 {[%clk 0:00:59.2]} 33. Bxc3 {[%clk
0:00:30.5]} 33... bxc3 {[%clk 0:01:00]} 34. Rc1 {[%clk 0:00:31.2]} 34... Bb4
{[%clk 0:00:52.3]} 35. Ne1 {[%clk 0:00:30.4]} 35... Rb2 {[%clk 0:00:41.7]} 36.
Ne3 {[%clk 0:00:20.4]} 36... Rxb3 {[%clk 0:00:40.7]} 37. N1c2 {[%clk 0:00:20.9]}
37... Nb6 {[%clk 0:00:25.3]} 38. Ra1 {[%clk 0:00:20.8]} 38... Bf8 {[%clk
0:00:21.2]} 39. Ra7 {[%clk 0:00:20.3]} 39... Nc4 {[%clk 0:00:19]} 40. Rc7 {[%clk
0:00:20.2]} 40... Rb1+ {[%clk 0:00:15.2]} 41. Kh2 {[%clk 0:00:19.8]} 41... Rb2
{[%clk 0:00:16]} 42. Kg3 {[%clk 0:00:17.6]} 42... Nd6 {[%clk 0:00:11.4]} 43. Kg4
{[%clk 0:00:10.4]} 43... Nb5 {[%clk 0:00:06.8]} 44. Rc8 {[%clk 0:00:09.6]} 44...
Ra2 {[%clk 0:00:07.3]} 45. f4 {[%clk 0:00:08.7]} 45... Ra4 {[%clk 0:00:07]} 46.
Kf3 {[%clk 0:00:06.5]} 46... Nxd4+ {[%clk 0:00:06.8]} 47. Nxd4 {[%clk
0:00:06.9]} 47... Rxd4 {[%clk 0:00:07.4]} 48. Rxc3 {[%clk 0:00:07.5]} 48... Ra4
{[%clk 0:00:07.7]} 49. Rc8 {[%clk 0:00:07.9]} 49... Ra3 {[%clk 0:00:07.5]} 50.
Ke2 {[%clk 0:00:08]} 50... Ra2+ {[%clk 0:00:08]} 51. Kf3 {[%clk 0:00:08.3]}
51... Ra3 {[%clk 0:00:08.2]} 52. Ke2 {[%clk 0:00:08.4]} 52... d4 {[%clk
0:00:08.2]} 53. Ng4 {[%clk 0:00:05.4]} 53... Rg3 {[%clk 0:00:07.5]} 54. Nf2
{[%clk 0:00:05.6]} 54... Rxg2 {[%clk 0:00:07.6]} 55. Kf3 {[%clk 0:00:06.1]}
55... Rh2 {[%clk 0:00:07.1]} 56. Ne4 {[%clk 0:00:05.5]} 56... Rxh5 {[%clk
0:00:05.7]} 57. Nc5 {[%clk 0:00:03.6]} 57... Rh3+ {[%clk 0:00:05.2]} 58. Ke4
{[%clk 0:00:03.8]} 58... Rc3 {[%clk 0:00:05.4]} 59. Kxd4 {[%clk 0:00:01.6]}
59... Rxc5 {[%clk 0:00:05]} 60. Rxc5 {[%clk 0:00:02.3]} 60... Bxc5+ {[%clk
0:00:04.1]} 0-1

[Event "Late-Titled-Tuesday-Blitz-October-03-2023"]
[Site "Chess.com"]
[Date "2023.10.03"]
[Round "6"]
[White "JoakimVonAnd"]
[Black "pedromartinez91"]
[Result "0-1"]
[WhiteElo "2709"]
[BlackElo "2568"]
[TimeControl "180+1"]
[EndTime "15:05:03 PDT"]
[Termination "pedromartinez91 won by checkmate"]

1. Nf3 {[%clk 0:03:00.9]} 1... d5 {[%clk 0:02:58.3]} 2. g3 {[%clk 0:03:00.1]}
2... Nc6 {[%clk 0:02:56.4]} 3. d4 {[%clk 0:02:59.6]} 3... Bg4 {[%clk 0:02:56.2]}
4. Bg2 {[%clk 0:02:58.9]} 4... Bd7 {[%clk 0:02:56.5]} 5. O-O {[%clk 0:02:54.5]}
5... Nf6 {[%clk 0:02:56]} 6. c4 {[%clk 0:02:54.7]} 6... e6 {[%clk 0:02:54.6]} 7.
Nc3 {[%clk 0:02:54.7]} 7... Be7 {[%clk 0:02:53.8]} 8. Ne5 {[%clk 0:02:52.5]}
8... dxc4 {[%clk 0:02:49.2]} 9. Nxc4 {[%clk 0:02:49.9]} 9... O-O {[%clk
0:02:47.9]} 10. Bf4 {[%clk 0:02:44.8]} 10... Be8 {[%clk 0:02:35]} 11. e3 {[%clk
0:02:32.5]} 11... Nd5 {[%clk 0:02:30]} 12. h4 {[%clk 0:01:44.2]} 12... Nxf4
{[%clk 0:02:25.7]} 13. exf4 {[%clk 0:01:45.1]} 13... Qxd4 {[%clk 0:02:24.4]} 14.
Qxd4 {[%clk 0:01:41.7]} 14... Nxd4 {[%clk 0:02:24]} 15. Bxb7 {[%clk 0:01:41.9]}
15... Rb8 {[%clk 0:02:22.9]} 16. Bg2 {[%clk 0:01:38.9]} 16... Rxb2 {[%clk
0:02:22.3]} 17. Rab1 {[%clk 0:01:38.7]} 17... Rc2 {[%clk 0:02:18.3]} 18. Rfd1
{[%clk 0:01:25.3]} 18... c5 {[%clk 0:01:50.2]} 19. Rb7 {[%clk 0:01:16.3]} 19...
Rxc3 {[%clk 0:01:45.2]} 20. Rxe7 {[%clk 0:01:14.9]} 20... Rxc4 {[%clk
0:01:45.7]} 21. Rxa7 {[%clk 0:01:15.3]} 21... Bc6 {[%clk 0:01:34.2]} 22. Bxc6
{[%clk 0:01:10.6]} 22... Nxc6 {[%clk 0:01:34]} 23. Rc7 {[%clk 0:01:11.4]} 23...
Nd4 {[%clk 0:01:31.7]} 24. a4 {[%clk 0:01:12.1]} 24... Ra8 {[%clk 0:01:29.6]}
25. a5 {[%clk 0:01:11.8]} 25... g6 {[%clk 0:01:29.4]} 26. Ra1 {[%clk 0:01:09.6]}
26... Nb3 {[%clk 0:01:28.7]} 27. Ra3 {[%clk 0:01:09.6]} 27... Nxa5 {[%clk
0:01:16.4]} 28. Kg2 {[%clk 0:01:09.9]} 28... Rc2 {[%clk 0:01:13]} 29. h5 {[%clk
0:01:09.3]} 29... gxh5 {[%clk 0:01:12.7]} 30. Kf3 {[%clk 0:01:07.3]} 30... Rb2
{[%clk 0:01:02.1]} 31. Kg2 {[%clk 0:01:07.3]} 31... Rb5 {[%clk 0:00:58.9]} 32.
Ra4 {[%clk 0:01:02.6]} 32... Rf8 {[%clk 0:00:58.4]} 33. Ra7 {[%clk 0:01:00.9]}
33... Nb3 {[%clk 0:00:58.1]} 34. Rc7 {[%clk 0:00:59.5]} 34... Nd4 {[%clk
0:00:58.1]} 35. Rc4 {[%clk 0:00:59.5]} 35... Nf5 {[%clk 0:00:55.5]} 36. Ra4
{[%clk 0:00:54.4]} 36... Rd8 {[%clk 0:00:33.4]} 37. Raa7 {[%clk 0:00:52.9]}
37... Nh6 {[%clk 0:00:33.5]} 38. f5 {[%clk 0:00:51.2]} 38... exf5 {[%clk
0:00:32.6]} 39. Ra6 {[%clk 0:00:51.5]} 39... Kg7 {[%clk 0:00:32.7]} 40. Rac6
{[%clk 0:00:50.9]} 40... Rd2 {[%clk 0:00:32.1]} 41. Rxc5 {[%clk 0:00:37.5]}
41... Rbb2 {[%clk 0:00:32]} 42. Kf3 {[%clk 0:00:34.2]} 42... Rxf2+ {[%clk
0:00:32.1]} 43. Ke3 {[%clk 0:00:35]} 43... Rbe2+ {[%clk 0:00:32]} 44. Kd4 {[%clk
0:00:35.4]} 44... Re6 {[%clk 0:00:32]} 45. Ra7 {[%clk 0:00:34.7]} 45... Rg2
{[%clk 0:00:31.9]} 46. Rcc7 {[%clk 0:00:34.8]} 46... Rxg3 {[%clk 0:00:30.8]} 47.
Rcb7 {[%clk 0:00:34.7]} 47... h4 {[%clk 0:00:31]} 48. Kd5 {[%clk 0:00:32.8]}
48... h3 {[%clk 0:00:30.8]} 49. Rb2 {[%clk 0:00:32.7]} 49... Rg2 {[%clk
0:00:30.5]} 50. Raa2 {[%clk 0:00:29.6]} 50... Reg6 {[%clk 0:00:29.4]} 51. Ke5
{[%clk 0:00:24.7]} 51... h2 {[%clk 0:00:28.1]} 52. Rxg2 {[%clk 0:00:24.4]} 52...
h1=Q {[%clk 0:00:28.3]} 53. Rxg6+ {[%clk 0:00:24.8]} 53... hxg6 {[%clk
0:00:28.5]} 54. Kf4 {[%clk 0:00:24]} 54... Qe4+ {[%clk 0:00:28.1]} 55. Kg3
{[%clk 0:00:24.7]} 55... Qe5+ {[%clk 0:00:28.2]} 56. Kf2 {[%clk 0:00:25.1]}
56... Qd4+ {[%clk 0:00:28.2]} 57. Kg3 {[%clk 0:00:25.6]} 57... f4+ {[%clk
0:00:28.5]} 58. Kh2 {[%clk 0:00:24.4]} 58... Ng4+ {[%clk 0:00:28.9]} 59. Kh3
{[%clk 0:00:23.8]} 59... Qe3+ {[%clk 0:00:25.8]} 60. Kg2 {[%clk 0:00:21.7]}
60... Qg3+ {[%clk 0:00:25.3]} 61. Kf1 {[%clk 0:00:21.5]} 61... Qd3+ {[%clk
0:00:25.6]} 62. Kg2 {[%clk 0:00:21.5]} 62... Qd5+ {[%clk 0:00:25.9]} 63. Kh3
{[%clk 0:00:21.4]} 63... Qxa2 {[%clk 0:00:26.3]} 64. Kxg4 {[%clk 0:00:22.2]}
64... Qg2+ {[%clk 0:00:26.4]} 65. Kxf4 {[%clk 0:00:22.2]} 65... Qd5 {[%clk
0:00:26.1]} 66. Kg4 {[%clk 0:00:22.5]} 66... Kh6 {[%clk 0:00:26.7]} 67. Kg3
{[%clk 0:00:23.4]} 67... f6 {[%clk 0:00:27.2]} 68. Kf4 {[%clk 0:00:24.3]} 68...
g5+ {[%clk 0:00:27.3]} 69. Kg4 {[%clk 0:00:25.2]} 69... f5+ {[%clk 0:00:27.8]}
70. Kg3 {[%clk 0:00:26.1]} 70... Kh5 {[%clk 0:00:28.4]} 71. Kf2 {[%clk
0:00:26.5]} 71... Qg8 {[%clk 0:00:28.3]} 72. Kg2 {[%clk 0:00:27.4]} 72... f4
{[%clk 0:00:28.9]} 73. Kf2 {[%clk 0:00:27.8]} 73... g4 {[%clk 0:00:29.2]} 74.
Kg2 {[%clk 0:00:27.8]} 74... Kg5 {[%clk 0:00:29.6]} 75. Kf2 {[%clk 0:00:28.7]}
75... Qg7 {[%clk 0:00:30.1]} 76. Kg2 {[%clk 0:00:29.6]} 76... Qh6 {[%clk
0:00:30.5]} 77. Kf2 {[%clk 0:00:30.5]} 77... Qh2+ {[%clk 0:00:30.7]} 78. Kf1
{[%clk 0:00:31]} 78... f3 {[%clk 0:00:30.6]} 79. Ke1 {[%clk 0:00:30.7]} 79... g3
{[%clk 0:00:30.1]} 80. Kd1 {[%clk 0:00:30.5]} 80... Qe2+ {[%clk 0:00:30.3]} 81.
Kc1 {[%clk 0:00:30.9]} 81... f2 {[%clk 0:00:30.8]} 82. Kb1 {[%clk 0:00:31.6]}
82... g2 {[%clk 0:00:31.3]} 83. Kc1 {[%clk 0:00:32.5]} 83... g1=N {[%clk
0:00:30.9]} 84. Kb1 {[%clk 0:00:33.4]} 84... Nf3 {[%clk 0:00:31.2]} 85. Kc1
{[%clk 0:00:34.3]} 85... Nd4 {[%clk 0:00:31.2]} 86. Kb1 {[%clk 0:00:35.2]} 86...
f1=B {[%clk 0:00:29.7]} 87. Kc1 {[%clk 0:00:36.1]} 87... Bg2 {[%clk 0:00:30]}
88. Kb1 {[%clk 0:00:37]} 88... Be4+ {[%clk 0:00:30.2]} 89. Kc1 {[%clk
0:00:37.9]} 89... Qc2# {[%clk 0:00:29.5]} 0-1

[Event "Late-Titled-Tuesday-Blitz-October-03-2023"]
[Site "Chess.com"]
[Date "2023.10.03"]
[Round "6"]
[White "canary2016"]
[Black "quvnoq_muxlis"]
[Result "0-1"]
[WhiteElo "2156"]
[BlackElo "2762"]
[TimeControl "180+1"]
[EndTime "15:05:03 PDT"]
[Termination "quvnoq_muxlis won by checkmate"]

1. e4 {[%clk 0:02:58]} 1... c5 {[%clk 0:03:00.1]} 2. d4 {[%clk 0:02:56.1]} 2...
cxd4 {[%clk 0:03:01]} 3. c3 {[%clk 0:02:56.1]} 3... d3 {[%clk 0:03:01.2]} 4.
Bxd3 {[%clk 0:02:55.3]} 4... Nc6 {[%clk 0:03:01.8]} 5. Nf3 {[%clk 0:02:55.2]}
5... Nf6 {[%clk 0:03:01.8]} 6. O-O {[%clk 0:02:55.1]} 6... e6 {[%clk 0:03:02.3]}
7. Bg5 {[%clk 0:02:53.1]} 7... Qc7 {[%clk 0:03:02.1]} 8. Re1 {[%clk 0:02:47.3]}
8... Ng4 {[%clk 0:02:52.6]} 9. h3 {[%clk 0:02:43.1]} 9... h6 {[%clk 0:02:41.8]}
10. Bh4 {[%clk 0:02:39.6]} 10... Nge5 {[%clk 0:02:37.5]} 11. Nxe5 {[%clk
0:02:33.1]} 11... Nxe5 {[%clk 0:02:37.2]} 12. Bg3 {[%clk 0:02:33.1]} 12... Bd6
{[%clk 0:02:15.6]} 13. Bf1 {[%clk 0:02:25.3]} 13... h5 {[%clk 0:02:12.1]} 14.
Nd2 {[%clk 0:01:59.3]} 14... h4 {[%clk 0:02:05]} 15. Bh2 {[%clk 0:01:57]} 15...
b6 {[%clk 0:01:42.7]} 16. Nb3 {[%clk 0:01:33.8]} 16... Nf3+ {[%clk 0:01:39.2]}
17. Qxf3 {[%clk 0:01:29.6]} 17... Bxh2+ {[%clk 0:01:40.1]} 18. Kh1 {[%clk
0:01:29.1]} 18... Bb7 {[%clk 0:01:40.8]} 19. Nd4 {[%clk 0:01:21.9]} 19... a6
{[%clk 0:01:37.9]} 20. Rad1 {[%clk 0:01:03.5]} 20... Be5 {[%clk 0:01:23.4]} 21.
Qg4 {[%clk 0:00:56.5]} 21... O-O-O {[%clk 0:01:08.5]} 22. Nf3 {[%clk 0:00:43.5]}
22... Bf6 {[%clk 0:01:07.6]} 23. e5 {[%clk 0:00:41]} 23... Be7 {[%clk
0:01:07.8]} 24. Rd4 {[%clk 0:00:24.1]} 24... Kb8 {[%clk 0:00:47.3]} 25. Rc4
{[%clk 0:00:19.9]} 25... Bc6 {[%clk 0:00:47.5]} 26. Nd4 {[%clk 0:00:14.5]} 26...
b5 {[%clk 0:00:42.9]} 27. Nxc6+ {[%clk 0:00:09]} 27... dxc6 {[%clk 0:00:43.3]}
28. Rd4 {[%clk 0:00:08.5]} 28... g6 {[%clk 0:00:43.4]} 29. Red1 {[%clk
0:00:08.3]} 29... Qxe5 {[%clk 0:00:31.2]} 30. Qf3 {[%clk 0:00:08.2]} 30... Bd6
{[%clk 0:00:24.6]} 31. g3 {[%clk 0:00:04.7]} 31... hxg3 {[%clk 0:00:25]} 32.
fxg3 {[%clk 0:00:04.6]} 32... c5 {[%clk 0:00:18.7]} 33. R4d2 {[%clk 0:00:02.4]}
33... Qxg3 {[%clk 0:00:05.8]} 34. Qxg3 {[%clk 0:00:02.3]} 34... Bxg3 {[%clk
0:00:06.7]} 35. Rxd8+ {[%clk 0:00:02.4]} 35... Rxd8 {[%clk 0:00:06.6]} 36. Rxd8+
{[%clk 0:00:02.7]} 36... Kc7 {[%clk 0:00:07.5]} 37. Rd3 {[%clk 0:00:02.7]} 37...
Bf4 {[%clk 0:00:07.3]} 38. Rf3 {[%clk 0:00:03]} 38... e5 {[%clk 0:00:07.9]} 39.
Kg2 {[%clk 0:00:03.1]} 39... Kd6 {[%clk 0:00:08.4]} 40. Bd3 {[%clk 0:00:03.4]}
40... Ke6 {[%clk 0:00:07.1]} 41. Be4 {[%clk 0:00:03.8]} 41... f5 {[%clk
0:00:07.2]} 42. Bb7 {[%clk 0:00:03.8]} 42... a5 {[%clk 0:00:07.9]} 43. Ba6
{[%clk 0:00:03.9]} 43... b4 {[%clk 0:00:08.5]} 44. Bc4+ {[%clk 0:00:04.1]} 44...
Kf6 {[%clk 0:00:08.9]} 45. cxb4 {[%clk 0:00:04.5]} 45... cxb4 {[%clk 0:00:09.8]}
46. a3 {[%clk 0:00:04.4]} 46... Bc1 {[%clk 0:00:08.8]} 47. axb4 {[%clk 0:00:04]}
47... axb4 {[%clk 0:00:09.7]} 48. Rb3 {[%clk 0:00:03.6]} 48... Bd2 {[%clk
0:00:10.2]} 49. Kf3 {[%clk 0:00:03.6]} 49... e4+ {[%clk 0:00:08.8]} 50. Ke2
{[%clk 0:00:03.7]} 50... e3 {[%clk 0:00:06.1]} 51. Bd3 {[%clk 0:00:03.1]} 51...
Ke5 {[%clk 0:00:05.8]} 52. Ba6 {[%clk 0:00:02.4]} 52... Kf4 {[%clk 0:00:06.1]}
53. Bc8 {[%clk 0:00:01.6]} 53... Kg3 {[%clk 0:00:06.1]} 54. Be6 {[%clk 0:00:02]}
54... Kxh3 {[%clk 0:00:06]} 55. Bf7 {[%clk 0:00:02.9]} 55... g5 {[%clk
0:00:06.5]} 56. Bg6 {[%clk 0:00:03.3]} 56... Kg4 {[%clk 0:00:06.3]} 57. Bf7
{[%clk 0:00:03.3]} 57... f4 {[%clk 0:00:05.8]} 58. Be6+ {[%clk 0:00:03.5]} 58...
Kg3 {[%clk 0:00:06.3]} 59. Bd5 {[%clk 0:00:03.3]} 59... g4 {[%clk 0:00:06.4]}
60. Rd3 {[%clk 0:00:03.7]} 60... f3+ {[%clk 0:00:06.6]} 61. Bxf3 {[%clk
0:00:03.3]} 61... gxf3+ {[%clk 0:00:06.6]} 62. Kf1 {[%clk 0:00:03.5]} 62... e2+
{[%clk 0:00:07.1]} 63. Kg1 {[%clk 0:00:03.7]} 63... e1=Q# {[%clk 0:00:08]} 0-1